bitfinex-derivatives/quotes_BNBF0:USTF0_20250302
["timestamp","ask_amount","ask_price","bid_price","bid_amount"]
[1740914316004,1.42654313,608.51,607.55,4.78219101]
[1740914316208,2.55468251,608.5,607.55,4.78219101]
[1740914316405,4.15186683,608.49,607.55,4.78219101]
[1740914316601,3.02372745,608.48,607.55,4.78219101]
[1740914316803,1.42654313,608.47,607.55,4.78219101]
[1740914317211,2.55468251,608.46,607.55,4.78219101]
[1740914317413,1.59662321,608.45,607.55,4.78219101]
[1740914317610,4.15130572,608.46,607.55,4.78219101]
[1740914317811,4.15130572,608.45,607.55,4.78219101]
[1740914318111,3.02316634,608.44,607.55,4.78219101]
[1740914318313,1.12813938,608.43,607.55,4.78219101]
[1740914318713,1.12813938,608.42,607.55,4.78219101]
[1740914319309,1.12813938,608.41,607.55,4.78219101]
[1740914319912,1.12813938,608.4,607.55,4.78219101]
[1740914320515,1.12813938,608.39,607.55,4.78219101]
[1740914321217,1.12813938,608.38,607.55,4.78219101]
[1740914322015,1.12813938,608.37,607.55,4.78219101]
[1740914322815,1.12813938,608.36,607.55,4.78219101]
[1740914323311,1.12813938,608.35,607.55,4.78219101]
[1740914323717,1.12813938,608.34,607.55,4.78219101]
[1740914324415,1.12813938,608.33,607.55,4.78219101]
[1740914325013,1.12813938,608.32,607.55,4.78219101]
[1740914325616,1.12813938,608.31,607.55,4.78219101]
[1740914326314,1.12813938,608.3,607.55,4.78219101]
[1740914326718,1.12813938,608.29,607.55,4.78219101]
[1740914327515,1.12813938,608.28,607.55,4.78219101]
[1740914328325,1.12813938,608.27,607.55,4.78219101]
[1740914328718,1.12813938,608.26,607.55,4.78219101]
[1740914329322,1.71711232,608.4,607.55,4.78219101]
[1740914329523,0.97800882,608.72,607.55,4.78219101]
[1740914329725,3.02870511,608.71,607.55,4.78219101]
[1740914329924,1.71707702,608.43,607.55,4.78219101]
[1740914330224,3.02870511,608.69,607.55,4.78219101]
[1740914330424,1.71705584,608.43,607.55,4.78219101]
[1740914330623,3.02870511,608.67,607.55,4.78219101]
[1740914330825,3.02870511,608.66,607.55,4.78219101]
[1740914331025,3.02870511,608.65,607.55,4.78219101]
[1740914331226,3.02870511,608.64,607.55,4.78219101]
[1740914331425,4.15875169,608.63,607.55,4.78219101]
[1740914331626,3.02870511,608.62,607.55,4.78219101]
[1740914331824,3.02873498,608.61,607.55,4.78219101]
[1740914332024,3.02873498,608.6,607.55,4.78219101]
[1740914332221,3.02873498,608.59,607.55,4.78219101]
[1740914332425,3.02873498,608.58,607.55,4.78219101]
[1740914332626,3.02873498,608.57,607.55,4.78219101]
[1740914332827,3.02873498,608.56,607.55,4.78219101]
[1740914333023,1.42893628,608.55,607.55,4.78219101]
[1740914333227,1.42893628,608.54,607.55,4.78219101]
[1740914333428,1.42893628,608.53,607.55,4.78219101]
[1740914333728,1.42893628,608.52,607.55,4.78219101]
[1740914333925,1.42926493,608.51,607.55,4.78219101]
[1740914334127,1.42926493,608.5,607.55,4.78219101]
[1740914334325,1.42926493,608.49,607.55,4.78219101]
[1740914334526,1.42926493,608.48,607.55,4.78219101]
[1740914334730,1.42926493,608.47,607.55,4.78219101]
[1740914334930,1.42926493,608.46,607.55,4.78219101]
[1740914335129,1.42926493,608.45,607.55,4.78219101]
[1740914335330,1.42926493,608.44,607.55,4.78219101]
[1740914335527,1.42926493,608.43,607.55,4.78219101]
[1740914335723,1.42926493,608.42,607.55,4.78219101]
[1740914335927,1.42926493,608.41,607.55,4.78219101]
[1740914336130,1.42926493,608.4,607.55,4.78219101]
[1740914336331,1.42926493,608.39,607.55,4.78219101]
[1740914336530,1.42926493,608.38,607.55,4.78219101]
[1740914336725,1.42926493,608.37,607.55,4.78219101]
[1740914337129,1.42926493,608.36,607.55,4.78219101]
[1740914337330,1.42926493,608.37,607.55,4.78219101]
[1740914337625,1.13004658,608.35,607.55,4.78219101]
[1740914338331,1.13004658,608.34,607.55,4.78219101]
[1740914338831,1.13004658,608.33,607.55,4.78219101]
[1740914339632,1.13004658,608.32,607.55,4.78219101]
[1740914340228,1.13004658,608.31,607.55,4.78219101]
[1740914340726,1.13004658,608.3,607.55,4.78219101]
[1740914341330,1.13004658,608.29,607.55,4.78219101]
[1740914342033,1.13004658,608.28,607.55,4.78219101]
[1740914342635,1.13004658,608.27,607.55,4.78219101]
[1740914343430,1.13004658,608.26,607.55,4.78219101]
[1740914344028,1.13004658,608.25,607.55,4.78219101]
[1740914344432,1.43048674,608.55,607.55,4.78219101]
[1740914344635,1.43048674,608.54,607.55,4.78219101]
[1740914344831,1.71723942,608.39,607.55,4.78219101]
[1740914345030,3.03135306,608.52,607.55,4.78219101]
[1740914345235,1.13076232,608.38,607.55,4.78219101]
[1740914345638,1.13076232,608.37,607.55,4.78219101]
[1740914346137,1.13076232,608.36,607.55,4.78219101]
[1740914346838,1.13076232,608.35,607.55,4.78219101]
[1740914347538,1.13076232,608.34,607.55,4.78219101]
[1740914347943,1.13076232,608.33,607.55,4.78219101]
[1740914348332,1.13076232,608.32,607.55,4.78219101]
[1740914348933,1.13076232,608.31,607.55,4.78219101]
[1740914349338,1.71716881,608.39,607.55,4.78219101]
[1740914349535,1.43048674,608.38,607.55,4.78219101]
[1740914349734,0.97988932,608.6,607.55,4.78219101]
[1740914349935,1.71692877,608.54,607.55,4.78219101]
[1740914350137,1.42940002,608.53,607.55,4.78219101]
[1740914350338,1.42940002,608.52,607.55,4.78219101]
[1740914350538,1.60036547,608.53,607.55,4.78219101]
[1740914350539,1.42940002,608.51,607.55,4.78219101]
[1740914350741,1.42940002,608.5,607.55,4.78219101]
[1740914350937,1.42940002,608.49,607.55,4.78219101]
[1740914351138,1.42940002,608.48,607.55,4.78219101]
[1740914351342,1.42940002,608.47,607.55,4.78219101]
[1740914351540,1.42940002,608.46,607.55,4.78219101]
[1740914351741,1.42940002,608.45,607.55,4.78219101]
[1740914351938,1.42940002,608.44,607.55,4.78219101]
[1740914352144,1.42940002,608.43,607.55,4.78219101]
[1740914352341,1.13041794,608.45,607.55,4.78219101]
[1740914352546,1.13041794,608.42,607.55,4.78219101]
[1740914353144,1.13041794,608.41,607.55,4.78219101]
[1740914353538,1.13041794,608.4,607.55,4.78219101]
[1740914353938,0.97898186,608.62,607.55,4.78219101]
[1740914353939,1.13041794,608.39,607.55,4.78219101]
[1740914355047,1.13041794,608.38,607.55,4.78219101]
[1740914355850,1.13041794,608.37,607.55,4.78219101]
[1740914356748,1.13041794,608.36,607.55,4.78219101]
[1740914357647,1.13041794,608.35,607.55,4.78219101]
[1740914358051,1.13041794,608.34,607.55,4.78219101]
[1740914359052,1.4306776,608.52,607.55,4.78219101]
[1740914359250,1.4306776,608.51,607.55,4.78219101]
[1740914359449,1.4306776,608.5,607.55,4.78219101]
[1740914359653,1.4306776,608.49,607.55,4.78219101]
[1740914359851,1.4306776,608.48,607.55,4.78219101]
[1740914360150,2.56196132,608.47,607.55,4.78219101]
[1740914360355,1.4306776,608.46,607.55,4.78219101]
[1740914360557,1.13128372,608.47,607.55,4.78219101]
[1740914360756,1.43038863,608.46,607.55,4.78219101]
[1740914360955,1.43038863,608.45,607.55,4.78219101]
[1740914361155,1.43038863,608.44,607.55,4.78219101]
[1740914361355,2.56167235,608.43,607.55,4.78219101]
[1740914361550,1.43038863,608.42,607.55,4.78219101]
[1740914361751,1.43038863,608.41,607.55,4.78219101]
[1740914362055,1.43038863,608.4,607.55,4.78219101]
[1740914362650,1.13128372,608.39,607.55,4.78219101]
[1740914363555,1.13128372,608.38,607.55,4.78219101]
[1740914364055,1.13128372,608.37,607.55,4.78219101]
[1740914364453,1.13128372,608.36,607.55,4.78219101]
[1740914365057,1.13128372,608.35,607.55,4.78219101]
[1740914365654,1.13128372,608.34,607.55,4.78219101]
[1740914366558,1.13128372,608.33,607.55,4.78219101]
[1740914366754,1.13128372,608.32,607.55,4.78219101]
[1740914367355,1.43003145,608.39,607.55,4.78219101]
[1740914367356,1.13128372,608.31,607.55,4.78219101]
[1740914367760,1.13128372,608.3,607.55,4.78219101]
[1740914368557,1.13128372,608.29,607.55,4.78219101]
[1740914368758,1.13128372,608.28,607.55,4.78219101]
[1740914369662,1.13128372,608.27,607.55,4.78219101]
[1740914370559,1.42996441,608.41,607.55,4.78219101]
[1740914370762,1.42996441,608.4,607.55,4.78219101]
[1740914370966,2.56091082,608.39,607.55,4.78219101]
[1740914371263,1.42996441,608.38,607.55,4.78219101]
[1740914371458,1.13094641,608.39,607.55,4.78219101]
[1740914371658,1.43024262,608.38,607.55,4.78219101]
[1740914371867,1.13094641,608.38,607.55,4.78219101]
[1740914372261,1.13094641,608.37,607.55,4.78219101]
[1740914373060,1.13094641,608.36,607.55,4.78219101]
[1740914373465,1.13094641,608.35,607.55,4.78219101]
[1740914373866,1.13094641,608.34,607.55,4.78219101]
[1740914374463,1.13094641,608.33,607.55,4.78219101]
[1740914375066,1.13094641,608.32,607.55,4.78219101]
[1740914376162,1.13094641,608.31,607.55,4.78219101]
[1740914376761,1.13094641,608.3,607.55,4.78219101]
[1740914377264,1.13094641,608.29,607.55,4.78219101]
[1740914377661,1.13094641,608.28,607.55,4.78219101]
[1740914378365,1.7170982,608.47,607.55,4.78219101]
[1740914378366,1.13094641,608.27,607.55,4.78219101]
[1740914379268,1.13094641,608.26,607.55,4.78219101]
[1740914380069,1.13094641,608.25,607.55,4.78219101]
[1740914380568,1.46427095,609.33,607.55,4.78219101]
[1740914380569,1.43076576,608.43,607.55,4.78219101]
[1740914380769,1.43076576,608.42,607.55,4.78219101]
[1740914380971,1.13153676,608.42,607.55,4.78219101]
[1740914381167,2.56230252,608.42,607.55,4.78219101]
[1740914382069,2.56230252,608.41,607.55,4.78219101]
[1740914382271,1.13153676,608.41,607.55,4.78219101]
[1740914382475,1.13153676,608.4,607.55,4.78219101]
[1740914383168,1.13153676,608.39,607.55,4.78219101]
[1740914384173,1.13153676,608.38,607.55,4.78219101]
[1740914384574,2.56230252,608.37,607.55,4.78219101]
[1740914384769,1.43076576,608.36,607.55,4.78219101]
[1740914384973,1.43076576,608.35,607.55,4.78219101]
[1740914385174,1.13153676,608.34,607.55,4.78219101]
[1740914385775,1.13153676,608.33,607.55,4.78219101]
[1740914386572,1.13153676,608.32,607.55,4.78219101]
[1740914386877,1.13153676,608.31,607.55,4.78219101]
[1740914387076,1.43038069,608.3,607.55,4.78219101]
[1740914387276,1.43038069,608.29,607.55,4.78219101]
[1740914387475,2.56191745,608.28,607.55,4.78219101]
[1740914387671,1.43038069,608.27,607.55,4.78219101]
[1740914387875,1.13153676,608.28,607.55,4.78219101]
[1740914388178,1.13153676,608.26,607.55,4.78219101]
[1740914389378,1.13153676,608.25,607.55,4.78219101]
[1740914390580,1.13153676,608.24,607.55,4.78219101]
[1740914391580,1.13153676,608.23,607.55,4.78219101]
[1740914392279,1.13153676,608.22,607.55,4.78219101]
[1740914393081,1.13153676,608.21,607.55,4.78219101]
[1740914393377,1.43019722,608.2,607.55,4.78219101]
[1740914393581,1.13153676,608.21,607.55,4.78219101]
[1740914393780,1.43013921,608.2,607.55,4.78219101]
[1740914393977,1.43013921,608.19,607.55,4.78219101]
[1740914394182,1.13153676,608.21,607.55,4.78219101]
[1740914394476,1.13153676,608.19,607.55,4.78219101]
[1740914394678,1.43014513,608.18,607.55,4.78219101]
[1740914394980,1.43014513,608.17,607.55,4.78219101]
[1740914395179,1.13153676,608.16,607.55,4.78219101]
[1740914396585,1.13153676,608.15,607.55,4.78219101]
[1740914396778,1.13153676,608.14,607.55,4.78219101]
[1740914397481,1.13153676,608.13,607.55,4.78219101]
[1740914397976,1.13153676,608.12,607.55,4.78219101]
[1740914398777,1.13153676,608.11,607.55,4.78219101]
[1740914399280,1.13153676,608.1,607.55,4.78219101]
[1740914399977,1.13153676,608.09,607.55,4.78219101]
[1740914400983,1.7176279,608.18,607.55,4.78219101]
[1740914401585,1.1280707,608.17,607.55,4.78219101]
[1740914401778,2.8456986,608.17,607.55,4.78219101]
[1740914401978,1.1280707,608.16,607.55,4.78219101]
[1740914402181,2.5573073,608.16,607.55,4.78219101]
[1740914402384,1.4292366,608.15,607.55,4.78219101]
[1740914402985,1.1280707,608.14,607.55,4.78219101]
[1740914403186,1.1280707,608.13,607.55,4.78219101]
[1740914403787,1.1280707,608.12,607.55,4.78219101]
[1740914404393,1.1280707,608.11,607.55,4.78219101]
[1740914404988,1.1280707,608.1,607.55,4.78219101]
[1740914405688,1.71761377,608.24,607.55,4.78219101]
[1740914406082,2.55159946,608.23,607.55,4.78219101]
[1740914406283,3.02000999,608.22,607.55,4.78219101]
[1740914406491,1.42479794,608.21,607.55,4.78219101]
[1740914406685,1.42479794,608.2,607.55,4.78219101]
[1740914406884,1.42479794,608.19,607.55,4.78219101]
[1740914407087,1.42479794,608.18,607.55,4.78219101]
[1740914407282,1.42479794,608.17,607.55,4.78219101]
[1740914407482,1.42479794,608.16,607.55,4.78219101]
[1740914407686,1.12680152,608.16,607.55,4.78219101]
[1740914408182,2.84452833,608.15,607.55,4.78219101]
[1740914408489,1.12680152,608.14,607.55,4.78219101]
[1740914408989,1.12680152,608.13,607.55,4.78219101]
[1740914409687,1.71772681,608.15,607.55,4.78219101]
[1740914409688,1.12680152,608.12,607.55,4.78219101]
[1740914410285,1.12680152,608.11,607.55,4.78219101]
[1740914410686,1.12680152,608.1,607.55,4.78219101]
[1740914410885,2.84469085,608.1,607.55,4.78219101]
[1740914411287,1.12680152,608.09,607.55,4.78219101]
[1740914411887,1.12680152,608.08,607.55,4.78219101]
[1740914412689,1.12680152,608.07,607.55,4.78219101]
[1740914413789,2.84471912,608.06,607.55,4.78219101]
[1740914414389,1.12680152,608.05,607.55,4.78219101]
[1740914415092,1.12680152,608.04,607.55,4.78219101]
[1740914415698,1.12680152,608.03,607.55,4.78219101]
[1740914416297,1.12680152,608.05,607.55,4.78219101]
[1740914416897,1.12680152,608.04,607.55,4.78219101]
[1740914417998,1.12680152,608.03,607.55,4.78219101]
[1740914418700,1.71776214,608.13,607.55,4.78219101]
[1740914419493,1.12680152,608.12,607.55,4.78219101]
[1740914420293,1.12680152,608.11,607.55,4.78219101]
[1740914420895,1.12680152,608.12,607.55,4.78219101]
[1740914421497,1.12680152,608.11,607.55,4.78219101]
[1740914422297,1.12680152,608.1,607.55,4.78219101]
[1740914422902,1.71779747,608.09,607.55,4.78219101]
[1740914423306,1.12680152,608.08,607.55,4.78219101]
[1740914425107,1.71779747,608.09,607.55,4.78219101]
[1740914425309,1.42044062,608.21,607.55,4.78219101]
[1740914425611,1.12680152,608.22,607.55,4.78219101]
[1740914426011,1.12680152,608.21,607.55,4.78219101]
[1740914426906,1.12680152,608.2,607.55,4.78219101]
[1740914427706,1.12680152,608.19,607.55,4.78219101]
[1740914428305,1.12680152,608.18,607.55,4.78219101]
[1740914428806,1.12680152,608.17,607.55,4.78219101]
[1740914429014,2.84441529,608.17,607.55,4.78219101]
[1740914429515,1.12680152,608.16,607.55,4.78219101]
[1740914429714,1.71761377,608.17,607.55,4.78219101]
[1740914431315,1.12680152,608.31,607.55,4.78219101]
[1740914431510,1.12680152,608.3,607.55,4.78219101]
[1740914431710,2.84422456,608.3,607.55,4.78219101]
[1740914431916,1.12680152,608.29,607.55,4.78219101]
[1740914432315,1.12680152,608.28,607.55,4.78219101]
[1740914432811,1.12680152,608.27,607.55,4.78219101]
[1740914433116,1.12680152,608.29,607.55,4.78219101]
[1740914433615,1.71733829,608.37,607.55,4.78219101]
[1740914433616,1.12680152,608.28,607.55,4.78219101]
[1740914435021,1.7173171,608.35,607.55,4.78219101]
[1740914435714,1.12680152,608.34,607.55,4.78219101]
[1740914436420,1.12680152,608.33,607.55,4.78219101]
[1740914437022,1.12680152,608.32,607.55,4.78219101]
[1740914437417,1.12680152,608.31,607.55,4.78219101]
[1740914438119,2.84422456,608.3,607.55,4.78219101]
[1740914438725,1.12680152,608.29,607.55,4.78219101]
[1740914439218,1.12680152,608.28,607.55,4.78219101]
[1740914440327,1.12680152,608.27,607.55,4.78219101]
[1740914441028,1.12680152,608.26,607.55,4.78219101]
[1740914441625,1.71726767,608.44,607.55,4.78219101]
[1740914442328,1.12787987,608.43,607.55,4.78219101]
[1740914443028,1.12787987,608.42,607.55,4.78219101]
[1740914443823,2.84498513,608.41,607.55,4.78219101]
[1740914444228,1.12787987,608.4,607.55,4.78219101]
[1740914444627,1.12787987,608.39,607.55,4.78219101]
[1740914445128,1.12787987,608.38,607.55,4.78219101]
[1740914445833,1.12787987,608.37,607.55,4.78219101]
[1740914446330,1.12787987,608.36,607.55,4.78219101]
[1740914447030,1.12787987,608.35,607.55,4.78219101]
[1740914447530,1.12787987,608.34,607.55,4.78219101]
[1740914448136,1.12787987,608.33,607.55,4.78219101]
[1740914448726,1.12787987,608.32,607.55,4.78219101]
[1740914449532,1.12787987,608.31,607.55,4.78219101]
[1740914449735,3.02335417,608.63,607.55,4.78219101]
[1740914449928,1.71718293,608.47,607.55,4.78219101]
[1740914450327,1.12812428,608.46,607.55,4.78219101]
[1740914450832,1.12812428,608.45,607.55,4.78219101]
[1740914451034,1.12812428,608.44,607.55,4.78219101]
[1740914451830,1.12812428,608.43,607.55,4.78219101]
[1740914452835,2.84522248,608.42,607.55,4.78219101]
[1740914453033,1.12812428,608.41,607.55,4.78219101]
[1740914453531,1.12812428,608.4,607.55,4.78219101]
[1740914454134,1.12812428,608.39,607.55,4.78219101]
[1740914454932,1.12812428,608.38,607.55,4.78219101]
[1740914455334,1.12812428,608.37,607.55,4.78219101]
[1740914456135,1.12812428,608.36,607.55,4.78219101]
[1740914457033,1.12812428,608.35,607.55,4.78219101]
[1740914457740,1.12812428,608.34,607.55,4.78219101]
[1740914458240,1.12812428,608.33,607.55,4.78219101]
[1740914459238,1.12812428,608.32,607.55,4.78219101]
[1740914459940,1.71716881,608.4,607.55,4.78219101]
[1740914460536,1.12737954,608.39,607.55,4.78219101]
[1740914460935,1.12737954,608.38,607.55,4.78219101]
[1740914461641,1.12737954,608.37,607.55,4.78219101]
[1740914462643,1.12737954,608.54,607.55,4.78219101]
[1740914463038,1.12737954,608.53,607.55,4.78219101]
[1740914463742,1.12737954,608.52,607.55,4.78219101]
[1740914464242,1.12737954,608.51,607.55,4.78219101]
[1740914464641,1.12737954,608.5,607.55,4.78219101]
[1740914465037,1.12737954,608.49,607.55,4.78219101]
[1740914465637,1.12737954,608.48,607.55,4.78219101]
[1740914466142,2.55261965,608.47,607.55,4.78219101]
[1740914466342,1.59539042,608.46,607.55,4.78219101]
[1740914466638,1.12737954,608.45,607.55,4.78219101]
[1740914467239,1.12737954,608.44,607.55,4.78219101]
[1740914467641,2.55261965,608.43,607.55,4.78219101]
[1740914467837,3.02063053,608.42,607.55,4.78219101]
[1740914468043,1.12737954,608.41,607.55,4.78219101]
[1740914468238,2.72276996,608.41,607.55,4.78219101]
[1740914468743,1.12737954,608.41,607.55,4.78219101]
[1740914468937,1.12737954,608.4,607.55,4.78219101]
[1740914469343,1.12737954,608.39,607.55,4.78219101]
[1740914469842,1.12737954,608.38,607.55,4.78219101]
[1740914470947,1.12737954,608.37,607.55,4.78219101]
[1740914471340,1.71730298,608.43,607.55,4.78219101]
[1740914471341,1.12737954,608.36,607.55,4.78219101]
[1740914472043,1.12737954,608.35,607.55,4.78219101]
[1740914472746,1.12737954,608.34,607.55,4.78219101]
[1740914473143,1.12737954,608.42,607.55,4.78219101]
[1740914473945,1.71709114,608.41,607.55,4.78219101]
[1740914474147,1.12737954,608.42,607.55,4.78219101]
[1740914475850,1.12737954,608.53,607.55,4.78219101]
[1740914476249,1.12737954,608.52,607.55,4.78219101]
[1740914476952,1.12737954,608.51,607.55,4.78219101]
[1740914477345,1.71678054,608.62,607.55,4.78219101]
[1740914477346,1.12737954,608.61,607.55,4.78219101]
[1740914478155,1.12737954,608.6,607.55,4.78219101]
[1740914479158,1.12737954,608.71,607.55,4.78219101]
[1740914479859,1.12737954,608.7,607.55,4.78219101]
[1740914480254,1.12737954,608.82,607.55,4.78219101]
[1740914480656,1.12737954,608.81,607.55,4.78219101]
[1740914481553,1.12737954,608.8,607.55,4.78219101]
[1740914482362,1.12737954,608.79,607.55,4.78219101]
[1740914483262,2.84370145,608.78,607.55,4.78219101]
[1740914483663,1.12737954,608.77,607.55,4.78219101]
[1740914484161,1.12737954,608.76,607.55,4.78219101]
[1740914484968,1.12737954,608.75,607.55,4.78219101]
[1740914485265,1.12737954,608.77,607.55,4.78219101]
[1740914485762,1.12737954,608.76,607.55,4.78219101]
[1740914487070,1.71632191,608.84,607.55,4.78219101]
[1740914487255,1.12737954,608.83,607.55,4.78219101]
[1740914488256,1.12737954,608.82,607.55,4.78219101]
[1740914488966,1.12737954,608.81,607.55,4.78219101]
[1740914489160,1.12737954,608.8,607.55,4.78219101]
[1740914490062,1.12737954,608.83,607.55,4.78219101]
[1740914491062,1.12737954,608.82,607.55,4.78219101]
[1740914491464,1.12737954,608.83,607.55,4.78219101]
[1740914491965,1.12737954,608.82,607.55,4.78219101]
[1740914492664,1.71627959,608.83,607.55,4.78219101]
[1740914497677,1.12737954,608.93,607.55,4.78219101]
[1740914498065,2.84358859,608.92,607.55,4.78219101]
[1740914498667,1.12737954,608.91,607.55,4.78219101]
[1740914499172,1.12737954,608.9,607.55,4.78219101]
[1740914499871,1.12737954,608.89,607.55,4.78219101]
[1740914500267,1.12737954,608.88,607.55,4.78219101]
[1740914500672,1.12737954,608.87,607.55,4.78219101]
[1740914501073,1.71623726,608.86,607.55,4.78219101]
[1740914501371,1.12737954,608.85,607.55,4.78219101]
[1740914503269,1.12737954,608.84,607.55,4.78219101]
[1740914503773,1.12737954,608.83,607.55,4.78219101]
[1740914504377,1.12737954,608.82,607.55,4.78219101]
[1740914504874,1.12737954,608.81,607.55,4.78219101]
[1740914505582,1.12737954,608.85,607.55,4.78219101]
[1740914506269,1.12737954,608.84,607.55,4.78219101]
[1740914506677,1.12737954,608.83,607.55,4.78219101]
[1740914506974,1.12737954,608.82,607.55,4.78219101]
[1740914507774,1.71633602,608.83,607.55,4.78219101]
[1740914509576,1.12737954,609.0,607.55,4.78219101]
[1740914509774,1.12737954,608.99,607.55,4.78219101]
[1740914509975,2.84344049,608.99,607.55,4.78219101]
[1740914510482,1.71606095,608.99,607.55,4.78219101]
[1740914510876,1.71606095,608.99,607.68,1.23095386]
[1740914511080,1.71606095,608.99,607.7,0.32910975]
[1740914512880,1.71606095,608.99,607.8,1.23095386]
[1740914513080,1.71606095,608.99,607.82,0.32904478]
[1740914514284,1.12737954,608.98,607.83,4.575]
[1740914514484,1.12737954,608.98,607.85,0.32902854]
[1740914514878,1.12737954,608.97,607.85,0.32902854]
[1740914515583,1.12737954,608.96,607.85,0.32902854]
[1740914516185,1.12737954,608.95,607.85,0.32902854]
[1740914516987,1.12737954,608.94,607.85,0.32902854]
[1740914517588,1.12737954,608.93,607.85,0.32902854]
[1740914517982,1.12737954,608.92,607.85,0.32902854]
[1740914518588,1.12737954,608.91,607.85,0.32902854]
[1740914519091,2.84325011,608.9,607.85,0.32902854]
[1740914520189,1.12737954,608.89,607.85,0.32902854]
[1740914520691,1.12737954,608.88,607.85,0.32902854]
[1740914521585,1.12737954,608.87,607.85,0.32902854]
[1740914522491,1.12737954,608.86,607.85,0.32902854]
[1740914523393,1.12737954,608.85,607.85,0.32902854]
[1740914524091,1.12737954,608.84,607.85,0.32902854]
[1740914524491,1.12737954,608.83,607.85,0.32902854]
[1740914524892,2.84356038,608.82,607.85,0.32902854]
[1740914525594,1.12737954,608.81,607.85,0.32902854]
[1740914525996,1.12737954,608.8,607.85,0.32902854]
[1740914526590,1.71618084,608.82,607.85,0.32902854]
[1740914526591,1.12737954,608.79,607.85,0.32902854]
[1740914527491,1.12737954,608.78,607.85,0.32902854]
[1740914527895,1.12737954,608.77,607.85,0.32902854]
[1740914528898,1.12737954,608.81,607.85,0.32902854]
[1740914529299,1.12737954,608.8,607.85,0.32902854]
[1740914529994,1.12737954,608.79,607.85,0.32902854]
[1740914530597,1.12737954,608.78,607.85,0.32902854]
[1740914531302,1.12737954,608.77,607.85,0.32902854]
[1740914531701,1.12737954,608.76,607.85,0.32902854]
[1740914532102,1.42784415,608.75,607.85,0.32902854]
[1740914532302,1.432381,608.75,607.85,0.32902854]
[1740914532498,1.12737954,608.75,607.85,0.32902854]
[1740914532702,1.432381,608.74,607.85,0.32902854]
[1740914532900,2.55976054,608.73,607.85,0.32902854]
[1740914533099,1.432381,608.72,607.85,0.32902854]
[1740914533405,2.55976054,608.71,607.86,0.579]
[1740914533604,2.55976054,608.7,607.88,0.3290123]
[1740914533800,1.432381,608.69,607.88,0.3290123]
[1740914534002,1.432381,608.68,607.88,0.3290123]
[1740914534201,1.432381,608.67,607.88,0.3290123]
[1740914534400,1.43345322,608.66,607.88,0.3290123]
[1740914534605,1.12737954,608.68,607.89,1.666]
[1740914534800,1.12737954,608.65,607.9,0.32900148]
[1740914535001,1.43339296,608.64,607.9,0.32900148]
[1740914535300,1.12737954,608.64,607.9,0.32900148]
[1740914535505,1.12737954,608.64,607.9,1.92100148]
[1740914537005,1.43359497,608.63,607.9,1.92100148]
[1740914537200,1.43359497,608.62,607.9,1.92100148]
[1740914537399,1.12737954,608.61,607.9,1.92100148]
[1740914538106,1.12737954,608.6,607.9,1.92100148]
[1740914538505,1.12737954,608.6,607.9,3.43000148]
[1740914538706,1.12737954,608.59,607.9,3.43000148]
[1740914539107,1.12737954,608.58,607.9,3.43000148]
[1740914539709,1.12737954,608.57,607.9,3.43000148]
[1740914540308,1.12737954,608.56,607.9,3.43000148]
[1740914540703,1.12737954,608.55,607.9,3.43000148]
[1740914540905,1.12737954,608.54,607.9,3.43000148]
[1740914541807,1.12737954,608.53,607.9,3.43000148]
[1740914542213,1.12737954,608.52,607.9,3.43000148]
[1740914542409,1.12737954,608.51,607.9,3.43000148]
[1740914543213,1.12737954,608.5,607.9,3.43000148]
[1740914543616,1.43326174,608.68,607.9,3.43000148]
[1740914543808,2.56662995,608.67,607.9,3.43000148]
[1740914544011,1.43326174,608.66,607.9,3.43000148]
[1740914544210,1.13336821,608.67,607.9,3.43000148]
[1740914544411,1.43304082,608.66,607.9,3.43000148]
[1740914544609,1.43304082,608.65,607.9,3.43000148]
[1740914544916,1.43304082,608.64,607.9,3.43000148]
[1740914545113,2.56640903,608.63,607.9,3.43000148]
[1740914545313,1.43304082,608.62,607.9,3.43000148]
[1740914545514,1.43304082,608.61,607.9,3.43000148]
[1740914545717,2.56640903,608.6,607.9,3.43000148]
[1740914545914,1.43304082,608.59,607.9,3.43000148]
[1740914546118,1.43304082,608.58,607.9,3.43000148]
[1740914546419,1.13336821,608.58,607.9,3.43000148]
[1740914547119,1.13336821,608.57,607.9,3.43000148]
[1740914547820,1.13336821,608.56,607.9,3.43000148]
[1740914548512,1.13336821,608.55,607.9,3.43000148]
[1740914548820,1.13336821,608.54,607.9,3.43000148]
[1740914549413,1.13336821,608.53,607.9,3.43000148]
[1740914549813,1.13336821,608.53,607.9,4.93000148]
[1740914550019,1.13336821,608.52,607.9,4.93000148]
[1740914550920,1.13336821,608.51,607.9,4.93000148]
[1740914551622,1.13336821,608.5,607.9,4.93000148]
[1740914552022,1.13336821,608.49,607.9,4.93000148]
[1740914552421,3.03416292,608.69,607.9,4.93000148]
[1740914552721,3.03416292,608.68,607.9,4.93000148]
[1740914552921,1.43148854,608.67,607.9,4.93000148]
[1740914553221,1.43148854,608.66,607.9,4.93000148]
[1740914553422,1.43148854,608.65,607.9,4.93000148]
[1740914553623,1.43148854,608.64,607.9,4.93000148]
[1740914553824,1.43148854,608.63,607.9,4.93000148]
[1740914554023,1.43148854,608.62,607.9,4.93000148]
[1740914554218,2.56340593,608.61,607.9,4.93000148]
[1740914554423,1.13191739,608.61,607.9,4.93000148]